bitfinex/quotes_ETHUSD_20241024
["timestamp","ask_amount","ask_price","bid_price","bid_amount"]
[1729805883428,4.831623,2542.8,2542.5,0.7645]
[1729805883937,4.831623,2542.8,2542.5,4.69763]
[1729805883938,0.898943,2542.8,2542.5,4.69763]
[1729805884255,0.04506582,2542.8,2542.5,4.69763]
[1729805884669,0.55,2542.9,2542.5,4.69763]
[1729805884853,0.04485037,2542.7,2542.5,4.69763]
[1729805885050,7.86491,2543.0,2542.5,4.69763]
[1729805885249,0.04479967,2542.6,2542.5,0.7645]
[1729805885467,3.93262,2542.9,2542.5,0.7645]
[1729805885662,0.04479967,2542.6,2542.5,0.7645]
[1729805885866,3.93245,2543.0,2542.5,4.69749]
[1729805886077,0.04479967,2542.6,2542.5,4.69749]
[1729805886278,0.55,2543.1,2542.5,4.69749]
[1729805886584,0.04491397,2542.9,2542.7,3.93275]
[1729805886877,3.93208,2543.2,2542.7,7.86547]
[1729805887042,0.04486327,2542.8,2542.7,7.86547]
[1729805887239,0.867744,2543.2,2542.8,3.93265]
[1729805887677,4.799884,2543.2,2542.7,3.93273]
[1729805888236,0.04497756,2543.1,2542.8,3.93267]
[1729805888484,0.04497756,2543.1,2543.0,0.8043]
[1729805888783,0.04501116,2543.1,2543.0,0.8043]
[1729805888939,3.93191,2543.3,2543.0,0.8043]
[1729805889138,0.04503636,2543.1,2543.0,4.73664]
[1729805889375,4.01044594,2543.4,2543.0,0.8043]
[1729805889579,0.04506575,2543.1,2543.0,0.8043]
[1729805889747,0.79421159,2543.3,2543.0,0.8043]
[1729805889947,0.04507415,2543.1,2543.0,0.8043]
[1729805890172,0.79421159,2543.3,2543.0,0.8043]
[1729805890483,0.04507415,2543.1,2543.0,0.8043]
[1729805890681,0.79421159,2543.3,2543.0,0.8043]
[1729805890848,0.04512483,2543.2,2543.0,0.8043]
[1729805891245,0.79421159,2543.3,2543.0,0.8043]
[1729805891478,0.04507415,2543.1,2543.0,0.8043]
[1729805891778,0.04500647,2543.1,2543.0,0.8043]
[1729805891994,3.93167,2543.5,2543.1,3.93219]
[1729805892165,4.50707802,2543.5,2543.1,3.93219]
[1729805894296,8.43875802,2543.5,2543.0,4.73665]
[1729805894520,4.50707802,2543.5,2543.0,4.73665]
[1729805895175,4.50707802,2543.5,2543.1,3.9322]
[1729805895500,0.04530516,2543.4,2543.1,4.01083474]
[1729805896094,0.04530516,2543.4,2543.0,4.73653]
[1729805896315,4.74485,2543.7,2543.2,3.93204]
[1729805896484,0.04552656,2543.6,2543.2,3.93204]
[1729805897811,0.04552656,2543.6,2543.2,7.86401]
[1729805898013,0.04552656,2543.6,2543.3,3.93181]
[1729805898320,0.04552656,2543.6,2543.2,3.93197]
[1729805900418,3.97700656,2543.6,2543.1,3.93219]
[1729805901497,3.97700656,2543.6,2543.0,4.73655]
[1729805901498,0.04552656,2543.6,2543.0,4.73655]
[1729805901798,0.04552656,2543.6,2543.3,3.93177]
[1729805901997,3.93113,2543.8,2543.4,0.07862682]
[1729805902201,0.04246543,2543.5,2543.4,0.07862682]
[1729805902392,3.93113,2543.8,2543.4,0.07862682]
[1729805902716,3.93113,2543.8,2543.3,3.93189]
[1729805903022,0.04266861,2543.7,2543.2,3.93195]
[1729805903198,0.04266861,2543.7,2543.4,3.93172]
[1729805903411,0.861555,2543.8,2543.4,3.93172]
[1729805903638,0.04252975,2543.6,2543.4,4.70822]
[1729805903841,4.76316594,2543.9,2543.4,8.63987]
[1729805904010,4.76316594,2543.9,2543.4,4.70815]
[1729805904011,0.04244803,2543.5,2543.4,4.70815]
[1729805904212,3.0,2544.2,2543.5,3.93151]
[1729805904213,4.00941594,2544.1,2543.5,3.93151]
[1729805904421,4.00941594,2544.1,2543.6,3.93135]
[1729805904741,0.07861594,2544.1,2543.7,3.93119]
[1729805905040,0.07861594,2544.1,2543.6,0.07861932]
[1729805905405,0.7535,2544.5,2543.8,3.25748986]
[1729805905601,3.92957,2544.9,2544.1,3.25748986]
[1729805905602,0.07861594,2544.8,2544.1,3.25748986]
[1729805905805,0.07861594,2544.8,2544.2,0.07860175]
[1729805905806,0.7535,2544.7,2544.2,0.07860175]
[1729805906215,0.04044696,2544.6,2544.2,0.07860175]
[1729805909015,0.04044696,2544.6,2544.3,3.93034]
[1729805909209,0.7535,2544.9,2544.4,0.07859712]
[1729805909421,0.03807812,2544.5,2544.4,3.93019]
[1729805909643,0.7535,2544.9,2544.3,4.73464316]
[1729805909945,0.7535,2544.9,2544.3,3.93035]
[1729805910143,0.03692099,2544.8,2544.3,3.93035]
[1729805910441,0.03692099,2544.8,2544.4,3.93019]
[1729805911142,0.03692099,2544.8,2544.4,3.93012]
[1729805911810,0.55,2544.7,2544.1,4.03398986]
[1729805912009,0.58687037,2544.7,2544.2,0.07860054]
[1729805912229,0.55,2544.7,2544.2,0.07860054]
[1729805912452,0.7535,2544.9,2544.3,3.93031]
[1729805912749,0.7535,2544.9,2544.4,3.93018]
[1729805913447,0.03751339,2544.8,2544.4,3.93018]
[1729805913648,0.03751339,2544.8,2544.5,0.07859182]
[1729805913835,0.03751339,2544.8,2544.4,3.93018]
[1729805914014,0.03751339,2544.8,2544.5,0.4716098]
[1729805914209,0.03751339,2544.8,2544.5,0.393018]
[1729805914413,0.03751339,2544.8,2544.5,0.47160919]
[1729805914643,0.03751339,2544.8,2544.5,4.40162919]
[1729805914810,0.03751339,2544.8,2544.5,0.47160919]
[1729805916347,0.03751339,2544.8,2544.6,0.44017692]
[1729805918016,0.03751339,2544.8,2544.6,1.23227692]
[1729805918221,0.03751339,2544.8,2544.6,1.31086378]
[1729805918437,0.7783,2545.2,2544.6,1.31086378]
[1729805918634,0.03623394,2544.7,2544.6,1.31086378]
[1729805918822,0.07861594,2545.1,2544.6,1.23227692]
[1729805919030,0.03622105,2544.7,2544.6,1.23227692]
[1729805919375,0.07861594,2545.1,2543.8,3.25748986]
[1729805919376,0.7783,2544.4,2543.8,3.25748986]
[1729805919660,4.78714594,2544.4,2543.8,3.25748986]
[1729805919818,0.03601014,2544.3,2543.8,3.25748986]
[1729805920015,0.03601014,2544.3,2543.8,4.05557585]
[1729805923055,0.03601014,2544.3,2543.9,0.07860919]
[1729805924261,0.03601014,2544.3,2544.0,3.93081]
[1729805928174,0.03601014,2544.3,2543.8,4.05557585]
[1729805928348,0.03601014,2544.3,2543.9,7.86186]
[1729805928547,0.03601014,2544.3,2543.8,7.98668585]
[1729805930188,4.78742594,2544.2,2543.8,3.25748986]
[1729805930485,4.78742594,2544.2,2543.5,3.93145]
[1729805930486,4.8220589,2544.2,2543.5,7.18893986]
[1729805931048,4.72123,2544.1,2543.5,3.25748986]
[1729805931252,5.71092715,2544.1,2543.5,3.25748986]
[1729805931548,0.7905,2544.0,2543.5,3.25748986]
[1729805931990,0.03448103,2543.9,2543.5,3.25748986]
[1729805938072,0.03448103,2543.9,2543.6,0.07861792]
[1729805938273,0.03448103,2543.9,2543.5,3.25748986]
[1729805939779,0.59770202,2543.9,2543.5,3.25748986]
[1729805940007,0.7905,2543.7,2543.2,3.25748986]
[1729805940303,3.93144,2543.6,2543.2,3.25748986]
[1729805940507,0.7905,2543.4,2543.2,3.25748986]
[1729805943415,0.7905,2543.4,2542.9,3.25748986]
[1729805945479,5.28094353,2543.4,2542.9,3.25748986]
[1729805946810,1.34919353,2543.4,2542.9,3.25748986]
[1729805947017,3.9319,2543.3,2542.9,3.25748986]
[1729805947511,3.93206,2543.2,2542.9,3.25748986]
[1729805947712,7.8639,2543.3,2542.9,3.25748986]
[1729805948012,3.93208,2543.2,2542.9,3.25748986]
[1729805948215,0.91344776,2543.3,2542.9,3.25748986]
[1729805948216,0.9920637,2543.3,2542.9,3.25748986]
[1729805948418,4.01054594,2543.3,2542.9,3.25748986]
[1729805949143,0.7905,2543.2,2542.9,3.25748986]
[1729805950331,4.72256,2543.2,2542.9,3.25748986]
[1729805952123,0.7905,2543.2,2542.9,3.25748986]
[1729805952420,0.7905,2543.2,2542.6,7.19037986]
[1729805952626,4.72259,2543.2,2542.6,8.46293322]
[1729805952822,4.80120594,2543.2,2542.6,8.46293322]
[1729805953336,3.93223,2543.1,2542.6,3.25748986]
[1729805953697,0.86911594,2543.2,2542.6,7.19044986]
[1729805953897,4.80118594,2543.2,2542.6,7.19044986]
[1729805954521,0.7905,2542.9,2542.4,0.81359369]
[1729805954831,4.72305,2542.9,2542.3,3.93336]
[1729805955043,0.07861594,2542.8,2542.3,3.93336]
[1729805956137,0.07861594,2542.8,2542.3,7.19084986]
[1729805958440,4.72357,2542.6,2541.9,3.93396]
[1729805958631,4.72357,2542.6,2541.8,7.04588986]
[1729805958632,3.9333,2542.4,2542.0,0.07866782]
[1729805958940,3.9333,2542.4,2541.8,3.25748986]
[1729805958941,0.7905,2542.2,2541.8,3.25748986]
[1729805959228,0.7905,2542.2,2541.7,3.93436]
[1729805959434,0.7905,2542.2,2541.6,8.59622048]
[1729805959587,0.7905,2542.2,2541.6,0.61582062]
[1729805959810,3.25748986,2542.7,2541.5,0.1229296]
[1729805959811,4.72448,2542.0,2541.5,0.1229296]
[1729805960012,0.86911594,2542.0,2541.5,0.1229296]
[1729805960416,0.7905,2542.0,2541.5,8.10346946]
[1729805960622,0.7905,2542.0,2541.5,4.0575796]
[1729805961037,0.7905,2542.0,2541.5,0.1229296]
[1729805961247,0.07861594,2541.9,2541.5,0.1229296]
[1729805961550,0.86911594,2542.0,2541.5,0.2016141]
[1729805961923,0.7905,2542.0,2541.6,4.01311295]
[1729805962226,0.7905,2542.0,2541.6,3.93443]
[1729805962629,0.7905,2542.0,2541.5,0.1229296]
[1729805962830,0.7905,2542.0,2541.6,3.93451]
[1729805963033,0.7905,2542.0,2541.5,0.1229296]
[1729805963256,0.7905,2542.0,2541.5,4.0575996]
[1729805963515,0.7905,2542.0,2541.6,0.07867742]
[1729805964362,0.7905,2542.0,2541.6,4.01316742]
[1729805964537,0.7905,2542.0,2541.6,3.93449]
[1729805964932,0.799,2542.3,2541.7,0.83597739]
[1729805965255,0.799,2542.3,2541.8,3.93421]
[1729805965556,0.87761594,2542.3,2541.7,0.83597739]
[1729805965853,0.799,2542.3,2541.8,3.93413]
[1729805967268,4.73245,2542.3,2541.7,3.93425]
[1729805967571,4.01224594,2542.2,2541.6,7.99110682]
[1729805968266,0.799,2542.1,2541.6,7.99110682]
[1729805970558,0.799,2542.1,2541.6,11.92553682]
[1729805970963,0.07861594,2542.0,2541.5,0.1229296]
[1729805971149,3.93411,2541.9,2541.5,0.1229296]
[1729805971355,0.799,2541.8,2541.5,0.1229296]
[1729805977195,3.58155434,2541.9,2541.5,0.1229296]
[1729805977400,0.35815543,2541.9,2541.5,0.1229296]
[1729805977584,3.93391,2542.0,2541.5,4.0575996]
[1729805979883,3.93416,2541.9,2541.5,0.1229296]
[1729805980070,0.7642,2541.8,2541.5,0.1229296]
[1729805980382,0.7642,2541.8,2541.6,1.60559863]
[1729805980589,0.7642,2541.8,2541.7,1.60559863]
[1729805981186,0.7642,2541.8,2541.5,1.72852823]
[1729805981387,0.7642,2541.8,2541.6,1.60559863]
[1729805981911,0.7642,2541.8,2541.7,1.60559863]
[1729805982057,3.93444,2541.7,2541.5,0.1229296]
[1729805982273,7.86889,2541.7,2541.5,0.1229296]
[1729805982476,3.93444,2541.7,2541.5,1.72852823]
[1729805982678,7.86893,2541.7,2541.5,1.72852823]
[1729805982985,7.86893,2541.7,2541.5,0.1229296]
[1729805983506,3.93452,2541.6,2541.5,1.72852823]
[1729805983997,3.93452,2541.6,2541.5,0.1229296]
[1729805983998,4.69872,2541.6,2541.5,0.1229296]
[1729805984177,4.69872,2541.6,2541.5,1.72852823]
[1729805984914,4.69872,2541.6,2541.5,0.1229296]
[1729805985712,4.69872,2541.6,2541.5,1.72852823]
[1729805986107,4.69872,2541.6,2541.5,0.1229296]
[1729805986475,4.69872,2541.6,2541.5,1.72852823]
[1729805986976,4.69872,2541.6,2541.5,0.1229296]
[1729805987208,0.7642,2541.6,2541.5,1.72852823]
[1729805987508,0.7642,2541.9,2541.5,2.29487105]
[1729805987697,0.7642,2541.9,2541.8,1.60559863]
[1729805989106,4.6983,2541.9,2541.5,0.1229296]
[1729805989317,0.7642,2541.9,2541.6,1.60559863]
[1729805989515,0.7642,2541.9,2541.7,1.60559863]
[1729805989719,1.3142,2541.9,2541.8,1.60559863]
[1729805989890,1.3142,2541.9,2541.7,1.60559863]
[1729805990806,5.24827,2541.9,2541.7,1.60559863]
[1729805991200,1.3142,2541.9,2541.7,1.60559863]
[1729805991609,5.24833,2541.9,2541.7,1.60559863]
[1729805992580,5.24833,2541.9,2541.5,0.1229296]
[1729805992581,5.24872,2541.6,2541.5,0.1229296]
[1729805997024,4.852313,2541.9,2541.5,0.1229296]
[1729805997025,3.93407,2541.9,2541.5,2.55202823]
[1729805997179,3.93407,2541.9,2541.5,0.9464296]
[1729805997389,3.93407,2541.9,2541.7,1.60559863]
[1729805997815,4.69821,2542.0,2541.7,1.60559863]
[1729805999024,0.7642,2542.0,2541.7,1.60559863]
[1729805999527,4.69815,2542.0,2541.7,1.60559863]
[1729806000314,4.48452,2541.6,2541.5,0.1229296]
[1729806000484,0.7642,2541.8,2541.5,0.1229296]
[1729806000696,0.7642,2541.8,2541.6,1.60559863]
[1729806000907,4.69854,2541.8,2541.6,1.60559863]
[1729806001587,4.69803,2542.1,2541.6,1.60559863]
[1729806001784,3.93383,2542.1,2541.8,1.60559863]
[1729806002530,4.69743,2542.5,2542.0,1.60559863]
[1729806002690,4.69743,2542.5,2542.3,1.60559863]
[1729806002885,4.69743,2542.5,2541.7,4.50058982]
[1729806002886,3.93348,2542.3,2541.7,1.46399156]
[1729806003090,3.93375,2542.2,2542.1,1.60559863]
[1729806004625,3.93345,2542.3,2542.1,1.60559863]
[1729806004789,3.93335,2542.4,2542.1,1.60559863]
[1729806004993,3.93335,2542.4,2542.3,1.60559863]
[1729806005192,0.7642,2542.5,2542.3,1.60559863]
[1729806005604,0.7642,2542.5,2542.2,1.60559863]
[1729806006020,3.93329,2542.4,2542.2,1.60559863]
[1729806006722,7.86667,2542.4,2542.2,1.60559863]
[1729806007495,3.93329,2542.4,2542.2,1.60559863]
[1729806007694,3.93329,2542.4,2542.3,1.60559863]
[1729806008004,3.93314,2542.5,2542.1,1.60559863]
[1729806008194,3.93314,2542.5,2542.2,0.72606704]
[1729806009132,3.93251,2542.9,2542.3,2.43629863]
[1729806009337,3.0,2543.0,2542.6,0.8307]
[1729806009495,3.93201,2543.3,2542.7,1.60559863]
[1729806009701,3.93201,2543.3,2542.8,1.60559863]
[1729806010019,3.932,2543.3,2542.9,0.8307]
[1729806010223,3.93208,2543.2,2542.9,0.8307]
[1729806010535,3.93209,2543.2,2542.9,0.8307]
[1729806010911,4.48184,2543.4,2542.9,4.84184114]
[1729806011108,3.93184,2543.4,2542.9,4.84184114]
[1729806011508,3.9317,2543.5,2543.0,1.60559863]
[1729806012011,7.86342,2543.5,2543.0,1.60559863]
[1729806012320,7.86342,2543.5,2542.9,6.02537346]
[1729806012321,4.48175,2543.4,2542.9,6.02537346]
[1729806012906,0.55,2543.4,2542.9,6.02537346]
[1729806013211,4.48178,2543.4,2542.9,6.02537346]
[1729806013559,7.86333,2543.5,2543.0,1.07443296]
[1729806013724,3.9316,2543.5,2542.9,8.69556]
[1729806013925,3.9316,2543.5,2542.9,4.76313]
[1729806014329,4.74818,2543.9,2543.2,0.8307]
[1729806014511,3.93138,2543.7,2543.2,0.90933149]
[1729806014839,3.93138,2543.7,2543.2,0.8307]
[1729806015019,3.93138,2543.7,2543.2,4.76267]
[1729806015206,7.86276,2543.7,2543.3,0.07862911]
[1729806015400,3.93138,2543.7,2543.2,5.632145]
[1729806016340,7.86279,2543.7,2543.2,5.632145]
[1729806016838,3.93138,2543.7,2543.2,5.632145]
[1729806017042,3.93138,2543.7,2543.3,0.07862913]
[1729806017199,3.93138,2543.7,2543.2,1.700175]
[1729806017405,3.93144,2543.6,2543.2,1.700175]
[1729806019414,3.93138,2543.7,2542.8,0.8307]
[1729806019415,3.93189,2543.3,2542.8,0.8307]
[1729806020047,3.93207,2543.2,2542.8,0.8307]
[1729806020626,3.93174,2543.4,2542.9,0.8307]
[1729806020961,3.93198,2543.3,2542.9,0.8307]
[1729806024632,3.93174,2543.4,2542.9,0.8307]
[1729806024837,3.93205,2543.2,2542.9,0.8307]
[1729806026431,3.9319,2543.3,2542.9,0.8307]
[1729806026627,3.93174,2543.4,2542.9,0.8307]
[1729806026936,3.93191,2543.3,2542.9,0.8307]
[1729806028862,3.93191,2543.3,2542.9,4.76319]
[1729806033854,3.93175,2543.4,2542.9,4.76319]
[1729806034267,3.93175,2543.4,2542.9,0.8307]
[1729806034473,3.93175,2543.4,2542.9,4.76318]
[1729806037171,3.93175,2543.4,2542.9,4.84182061]
[1729806037371,3.93175,2543.4,2542.9,5.94335143]
[1729806037676,3.93175,2543.4,2543.0,3.93233]
[1729806040278,7.86305,2543.6,2543.1,3.93214]
[1729806040462,5.53548773,2543.6,2543.1,3.93214]
[1729806041189,5.53548773,2543.6,2543.1,4.01077509]
[1729806041379,3.93125,2543.8,2543.3,3.93185]
[1729806041380,5.53522773,2543.8,2543.3,3.93185]
[1729806041590,9.46644773,2543.8,2543.3,4.01047984]
[1729806042790,3.93131,2543.7,2543.4,0.7657]
[1729806043259,5.53509773,2543.8,2543.4,0.7657]
[1729806043660,3.93112,2543.8,2543.4,0.7657]
[1729806044252,5.53509773,2543.8,2543.4,0.7657]
[1729806044452,3.93128,2543.7,2543.4,0.7657]
[1729806046996,3.93159,2543.5,2543.4,0.7657]
[1729806047379,3.93136,2543.7,2543.4,0.7657]
[1729806053635,3.93128,2543.7,2543.4,0.7657]
[1729806054589,1.60397773,2543.9,2543.4,0.7657]
[1729806054790,3.93159,2543.5,2543.4,0.7657]
[1729806054995,3.93201,2543.3,2543.2,0.8303]
[1729806057001,3.93201,2543.3,2543.1,0.81972617]
[1729806058514,3.93201,2543.3,2543.0,0.8303]
[1729806058712,4.71912,2542.7,2542.2,0.8303]
[1729806058913,6.87309773,2542.7,2542.2,0.8303]
[1729806059215,6.87309773,2542.7,2541.8,3.93411]
[1729806059216,9.88309773,2542.7,2542.6,7.7e-06]
[1729806059415,3.93421,2541.8,2541.7,4.05620042]
[1729806060210,3.93407,2541.9,2541.7,4.05620042]
[1729806062606,3.93421,2541.8,2541.7,4.05620042]
[1729806067322,4.00715194,2541.8,2541.7,4.05620042]
[1729806068708,4.00715194,2541.8,2541.5,0.1229296]
[1729806069045,3.9344,2541.7,2541.5,0.1229296]
[1729806069395,0.07266479,2541.6,2541.5,0.1229296]
[1729806069943,0.07393865,2541.6,2541.5,0.1229296]
[1729806071232,0.07266479,2541.6,2541.5,0.1229296]
[1729806075528,4.00718479,2541.6,2541.5,0.1229296]
[1729806075742,0.07266479,2541.6,2541.5,0.1229296]
[1729806076846,0.07266479,2541.6,2541.5,0.9532296]
[1729806076996,3.93389,2542.1,2541.6,3.93441]
[1729806077200,3.93389,2542.1,2541.7,0.8303]
[1729806077396,0.07222318,2542.0,2541.7,0.8303]
[1729806077830,0.07222318,2542.0,2541.7,4.76465]
[1729806078030,0.07222318,2542.0,2541.7,0.8303]
[1729806078231,3.93364,2542.2,2541.7,0.8303]
[1729806078398,0.07220111,2541.9,2541.7,0.8303]
[1729806078596,4.86160703,2542.2,2541.7,0.8303]
[1729806078797,0.07167201,2541.8,2541.7,0.8303]
[1729806079036,4.86160703,2542.2,2541.7,0.8303]
[1729806079235,0.0717015,2541.8,2541.7,0.8303]
[1729806079436,4.86160703,2542.2,2541.7,0.8303]
[1729806079605,0.0717015,2541.8,2541.7,0.8303]
[1729806080151,3.93376,2542.1,2541.7,0.8303]
[1729806080327,0.07177684,2542.0,2541.7,0.8303]
[1729806082410,0.07177684,2542.0,2541.7,2.43579246]
[1729806082611,0.07177684,2542.0,2541.7,0.8303]
[1729806083227,0.07177684,2542.0,2541.7,2.43579246]
[1729806083545,0.07177684,2542.0,2541.7,0.8303]
[1729806084532,0.07177684,2542.0,2541.6,4.73561]
[1729806085510,0.07177684,2542.0,2541.6,7.38097767]
[1729806086549,0.07177684,2542.0,2541.6,7.45965825]
[1729806088049,0.07177684,2542.0,2541.6,7.38097767]
[1729806091049,0.07177684,2542.0,2541.6,7.45965834]
[1729806091436,0.07177684,2542.0,2541.6,7.38097767]
[1729806092223,0.07177684,2542.0,2541.6,7.45965831]
[1729806093120,0.07177684,2542.0,2541.7,1.60549246]
[1729806093343,0.07177684,2542.0,2541.6,7.38097767]
[1729806093624,0.07177684,2542.0,2541.7,5.61852179]
[1729806093837,0.07177684,2542.0,2541.7,4.01302933]
[1729806094042,0.07177684,2542.0,2541.7,3.93435]
[1729806095572,0.07177684,2542.0,2541.7,4.75028504]
[1729806096533,0.07177684,2542.0,2541.9,0.81593504]
[1729806097470,3.93361,2542.2,2541.9,0.81593504]
[1729806097637,0.0719543,2542.0,2541.9,0.81593504]
[1729806097844,3.93361,2542.2,2541.9,0.81593504]
[1729806098045,0.0719543,2542.0,2541.9,0.81593504]
[1729806098532,3.93361,2542.2,2541.9,0.81593504]
[1729806098873,0.07196133,2542.1,2541.9,6.43414183]
[1729806099041,0.07196133,2542.1,2542.0,0.8152]
[1729806099245,3.93345,2542.3,2542.0,1.63113504]
[1729806099442,0.07196133,2542.1,2542.0,0.8152]
[1729806099646,3.93345,2542.3,2542.0,0.8152]
[1729806100148,0.07201046,2542.2,2542.0,0.8152]
[1729806100341,8.65304,2542.4,2542.0,1.63113504]
[1729806100548,4.00552957,2542.3,2542.0,1.63113504]
[1729806101454,4.00552957,2542.3,2542.0,0.8152]
[1729806101965,4.00552957,2542.3,2542.0,1.63113504]
[1729806102675,4.00552957,2542.3,2542.0,0.8152]
[1729806102856,4.00552957,2542.3,2542.0,1.63113504]
[1729806103258,4.00552957,2542.3,2542.0,3.2366275]
[1729806103466,4.00552957,2542.3,2542.0,1.63113504]
[1729806103691,0.07205957,2542.3,2542.0,1.63113504]
[1729806103843,0.07205957,2542.3,2542.0,3.2366275]
[1729806104183,4.00552957,2542.3,2542.0,3.2366275]
[1729806105355,4.00552957,2542.3,2542.0,1.63113504]
[1729806105780,4.00552957,2542.3,2542.0,3.2366275]
[1729806109983,4.00552957,2542.3,2542.0,1.63113504]
[1729806110487,0.00705041,2542.2,2542.0,1.63113504]
[1729806110876,4.00552957,2542.3,2542.0,1.63113504]
[1729806111053,0.06727278,2542.1,2542.0,1.63113504]
[1729806111254,3.93347,2542.3,2542.0,1.63113504]
[1729806111461,0.06002368,2542.1,2542.0,1.63113504]
[1729806111661,3.93347,2542.3,2542.0,1.63113504]
[1729806112151,0.06027149,2542.2,2542.0,1.63113504]
[1729806112354,3.93347,2542.3,2542.0,1.63113504]
[1729806112669,0.06027149,2542.2,2542.0,1.63113504]
[1729806113191,3.93347,2542.3,2542.0,1.63113504]
[1729806113353,0.06027149,2542.2,2542.0,1.63113504]
[1729806113551,3.93347,2542.3,2542.0,1.63113504]
[1729806113752,0.06027149,2542.2,2542.0,1.63113504]
[1729806113986,3.93347,2542.3,2542.0,1.63113504]
[1729806114291,0.06027149,2542.2,2542.0,0.8152]
[1729806114456,0.06027149,2542.2,2542.0,1.63113504]
[1729806114657,3.93347,2542.3,2542.0,1.63113504]
[1729806114858,0.06002368,2542.1,2542.0,1.63113504]
[1729806115060,3.93347,2542.3,2542.0,1.63113504]
[1729806115288,0.06002368,2542.1,2542.0,1.63113504]
[1729806115490,3.93347,2542.3,2542.0,1.63113504]
[1729806115700,0.06002368,2542.1,2542.0,1.63113504]
[1729806115857,3.93347,2542.3,2542.0,1.63113504]
[1729806116291,0.06027149,2542.2,2542.0,1.63113504]
[1729806116789,0.06002368,2542.1,2542.0,1.63113504]
[1729806117155,3.93347,2542.3,2542.0,1.63113504]
[1729806117695,0.06027149,2542.2,2542.0,1.63113504]
[1729806118059,3.93347,2542.3,2542.0,1.63113504]
[1729806118790,0.06027149,2542.2,2542.0,1.63113504]
[1729806118992,3.93347,2542.3,2542.0,1.63113504]
[1729806119171,0.06027149,2542.2,2542.0,1.63113504]
[1729806119365,3.93347,2542.3,2542.0,1.63113504]
[1729806119762,0.0673177,2542.2,2542.0,0.8152]
[1729806131800,0.0673177,2542.2,2542.0,0.89387]
[1729806135627,0.0673177,2542.2,2542.0,4.82777]
[1729806136542,0.0673177,2542.2,2542.1,1.23229264]
[1729806138901,3.93315,2542.5,2542.1,1.23229264]
[1729806139103,3.93315,2542.5,2542.3,0.82158745]
[1729806139297,3.93315,2542.5,2542.2,0.82158745]
[1729806139504,0.06076706,2542.4,2542.2,0.82158745]
[1729806142535,0.06076706,2542.4,2542.3,0.82158745]
[1729806143499,0.06076706,2542.4,2542.2,0.82158745]
[1729806144933,0.06076706,2542.4,2542.3,0.82158745]
[1729806149934,0.06645059,2542.4,2542.3,0.82158745]
[1729806150423,0.0775167,2542.4,2542.3,0.82158745]
[1729806159554,0.06180646,2542.4,2542.3,0.82158745]
[1729806161656,0.06180646,2542.4,2542.2,1.23229264]
[1729806161967,0.06180646,2542.4,2542.3,0.82253665]
[1729806162456,0.06180646,2542.4,2542.2,1.23229264]
[1729806162962,3.99518646,2542.4,2542.2,1.23229264]
[1729806163163,3.99518646,2542.4,2542.3,1.23229264]
[1729806164943,0.06180646,2542.4,2542.3,1.23229264]
[1729806171665,3.99509646,2542.4,2542.3,1.23229264]
[1729806171977,0.06180646,2542.4,2542.3,1.23229264]
[1729806172135,0.06180646,2542.4,2542.2,1.23229264]
[1729806172466,0.06180646,2542.4,2542.3,1.23229264]
[1729806172674,0.06180646,2542.4,2542.3,0.82232059]
[1729806175475,0.06180646,2542.4,2542.2,1.23229264]
[1729806176973,0.06180646,2542.4,2542.3,0.82236579]
[1729806177883,0.06180646,2542.4,2542.2,1.23229264]
[1729806178104,3.99510646,2542.4,2542.2,1.23229264]
[1729806178387,5.29311211,2542.4,2542.3,0.82237822]
[1729806178585,0.88500646,2542.4,2542.3,2.42787068]
[1729806178742,0.06180646,2542.4,2542.2,1.23229264]
[1729806178939,0.06180646,2542.4,2542.3,0.82239405]
[1729806188585,4.81829646,2542.4,2542.2,0.82239405]
[1729806188953,4.81829646,2542.4,2542.3,0.82239405]
[1729806189363,4.75649,2542.4,2542.3,0.82239405]
[1729806189564,4.75649,2542.4,2542.2,0.82239405]
[1729806189768,4.81849229,2542.4,2542.2,0.82239405]
[1729806191355,3.99529229,2542.4,2542.2,1.58555741]
[1729806191566,0.8232,2542.3,2542.2,0.82239405]
[1729806193411,0.85584195,2542.3,2542.2,0.82239405]
[1729806194478,0.03264195,2542.3,2542.2,0.82239405]
[1729806194875,0.06191513,2542.3,2542.2,0.82239405]
[1729806206520,0.06191513,2542.3,2542.0,3.93387]
[1729806206699,0.06191513,2542.3,2542.1,0.470447]
[1729806207219,0.06191513,2542.3,2542.2,0.82226168]
[1729806211051,0.06191513,2542.3,2542.1,0.470447]
[1729806211917,0.06191513,2542.3,2542.2,4.7042]
[1729806212122,0.06191513,2542.3,2542.2,5.52643361]
[1729806212329,0.06191513,2542.3,2542.2,6.98836841]
[1729806212521,3.93277,2542.8,2542.3,3.93338]
[1729806212716,3.96142359,2542.7,2542.5,0.82200838]
[1729806213232,0.0333978,2542.6,2542.5,0.82200838]
[1729806213442,0.0333978,2542.6,2542.5,1.59260838]
[1729806213621,3.93277,2542.8,2542.5,2.60136543]
[1729806214146,0.02869567,2542.7,2542.5,2.60136543]
[1729806214657,7.86493,2543.0,2542.6,0.82200838]
[1729806214818,3.93246,2543.0,2542.6,0.82200838]
[1729806215151,3.93245,2543.0,2542.6,0.82200838]
[1729806215310,3.93228,2543.1,2542.8,2.37609246]
[1729806215514,0.7736,2543.3,2542.8,2.37609246]
[1729806215515,3.93206,2543.2,2542.8,2.37609246]
[1729806215714,4.70554,2543.3,2542.8,7.20939794]
[1729806216028,3.93194,2543.3,2542.8,7.20939794]
[1729806216415,3.93194,2543.3,2542.8,8.67897505]
[1729806216734,0.03488379,2543.2,2543.1,0.7749]
[1729806217048,3.93168,2543.5,2543.1,0.7749]
[1729806217218,0.03488379,2543.2,2543.1,0.7749]
[1729806217421,7.86336,2543.5,2543.1,0.7749]
[1729806217644,0.03488379,2543.2,2543.1,0.7749]
[1729806217827,7.86336,2543.5,2543.1,0.7749]
[1729806218349,0.03537897,2543.4,2543.1,0.7749]
[1729806219748,0.03537897,2543.4,2543.1,0.7749]
[1729806219916,0.03537897,2543.4,2543.1,1.88947016]
[1729806221516,0.03537897,2543.4,2543.2,2.45902883]
[1729806221911,3.93148,2543.6,2543.2,2.45902883]
[1729806222112,0.03562653,2543.5,2543.2,2.45902883]
[1729806223072,0.03562653,2543.5,2543.2,6.39107883]
[1729806223218,0.03562653,2543.5,2543.3,0.7505649]
[1729806223575,3.93128,2543.7,2543.3,0.7505649]
[1729806223877,0.03524637,2543.4,2543.2,6.39107883]